[Event "Titled Tuesday Blitz November 14 Late 2023"]
[White "Solon, Nathan"]
[Black "Kubatko, Ivan"]
[WhiteFideId "2017229"]
[BlackFideId "24111473"]
[WhiteElo "2672"]
[BlackElo "2402"]
[Result "1-0"]
[Round "1"]
[TimeControl "180+1"]
[Date "2023.11.14"]
[WhiteClock "0:00:55"]
[BlackClock "0:00:02"]
[Board "80"]

1. d4 {[%clk 0:03:00]}  d5 {[%clk 0:02:59]} 2. Bf4 {[%clk 0:03:00]}  c5 {[%clk 0:02:59]} 3. e3 {[%clk 0:03:00]}  Nc6 {[%clk 0:02:58]} 4. Nf3 {[%clk 0:03:00]}  Nf6 {[%clk 0:02:58]} 5. Nbd2 {[%clk 0:03:00]}  Bg4 {[%clk 0:02:52]} 6. h3 {[%clk 0:02:57]}  Bh5 {[%clk 0:02:52]} 7. g4 {[%clk 0:02:46]}  Bg6 {[%clk 0:02:51]} 8. Bb5 {[%clk 0:02:46]}  e6 {[%clk 0:02:50]} 9. Ne5 {[%clk 0:02:44]}  Rc8 {[%clk 0:02:47]} 10. h4 {[%clk 0:02:40]}  cxd4 {[%clk 0:02:06]} 11. exd4 {[%clk 0:02:35]}  h6 {[%clk 0:01:05]} 12. Nxg6 {[%clk 0:02:31]}  fxg6 {[%clk 0:01:05]} 13. c3 {[%clk 0:02:28]}  Kf7 {[%clk 0:01:05]} 14. Qf3 {[%clk 0:02:13]}  Bd6 {[%clk 0:00:53]} 15. Bxc6 {[%clk 0:01:47]}  Rxc6 {[%clk 0:00:51]} 16. O-O-O {[%clk 0:01:46]}  Bxf4 {[%clk 0:00:50]} 17. Qxf4 {[%clk 0:01:47]}  Qc7 {[%clk 0:00:49]} 18. Qxc7+ {[%clk 0:01:40]}  Rxc7 {[%clk 0:00:49]} 19. g5 {[%clk 0:01:41]}  Nd7 {[%clk 0:00:33]} 20. Nf3 {[%clk 0:01:38]}  b5 {[%clk 0:00:32]} 21. Kd2 {[%clk 0:01:37]}  b4 {[%clk 0:00:21]} 22. cxb4 {[%clk 0:01:34]}  Rb8 {[%clk 0:00:21]} 23. a3 {[%clk 0:01:30]}  a5 {[%clk 0:00:21]} 24. Rc1 {[%clk 0:01:27]}  Rcb7 {[%clk 0:00:17]} 25. h5 {[%clk 0:01:21]}  axb4 {[%clk 0:00:09]} 26. a4 {[%clk 0:01:21]}  b3 {[%clk 0:00:06]} 27. hxg6+ {[%clk 0:01:15]}  Kxg6 {[%clk 0:00:07]} 28. gxh6 {[%clk 0:01:13]}  gxh6 {[%clk 0:00:08]} 29. Rcg1+ {[%clk 0:01:13]}  Kf7 {[%clk 0:00:03]} 30. Rxh6 {[%clk 0:01:12]}  Ke7 {[%clk 0:00:03]} 31. Rg7+ {[%clk 0:01:05]}  Kd6 {[%clk 0:00:03]} 32. Ng5 {[%clk 0:01:05]}  Nf8 {[%clk 0:00:03]} 33. Rxb7 {[%clk 0:00:58]}  Rxb7 {[%clk 0:00:04]} 34. Rf6 {[%clk 0:00:55]}  Ke7 {[%clk 0:00:02]} 35. Rf7+ {[%clk 0:00:55]} 1-0


[Site "https://www.chess.com"]

[Event "Titled Tuesday Blitz November 14 Late 2023"]
[White "Saya, Ethan"]
[Black "MKlose11"]
[WhiteFideId "26095181"]
[WhiteElo "2401"]
[BlackElo "2671"]
[Result "1/2-1/2"]
[Round "1"]
[TimeControl "180+1"]
[Date "2023.11.14"]
[WhiteClock "0:00:02"]
[BlackClock "0:00:02"]
[Board "81"]

1. d4 {[%clk 0:02:59]}  Nf6 {[%clk 0:02:59]} 2. c4 {[%clk 0:02:59]}  c5 {[%clk 0:03:00]} 3. d5 {[%clk 0:02:59]}  b5 {[%clk 0:03:00]} 4. cxb5 {[%clk 0:02:58]}  a6 {[%clk 0:03:01]} 5. bxa6 {[%clk 0:02:59]}  Bxa6 {[%clk 0:03:01]} 6. Nc3 {[%clk 0:02:56]}  g6 {[%clk 0:03:01]} 7. e4 {[%clk 0:02:55]}  Bxf1 {[%clk 0:03:01]} 8. Kxf1 {[%clk 0:02:56]}  d6 {[%clk 0:03:01]} 9. g3 {[%clk 0:02:56]}  Bg7 {[%clk 0:03:01]} 10. Kg2 {[%clk 0:02:56]}  O-O {[%clk 0:03:01]} 11. Nf3 {[%clk 0:02:56]}  Nbd7 {[%clk 0:03:02]} 12. Re1 {[%clk 0:02:41]}  Ne8 {[%clk 0:02:51]} 13. a4 {[%clk 0:02:36]}  Qb6 {[%clk 0:02:51]} 14. Nb5 {[%clk 0:02:32]}  Nc7 {[%clk 0:02:51]} 15. Nxc7 {[%clk 0:02:27]}  Qxc7 {[%clk 0:02:52]} 16. Qc2 {[%clk 0:02:21]}  Rfb8 {[%clk 0:02:49]} 17. Nd2 {[%clk 0:02:19]}  Qb6 {[%clk 0:02:44]} 18. Nc4 {[%clk 0:02:18]}  Qb3 {[%clk 0:02:43]} 19. Qxb3 {[%clk 0:02:15]}  Rxb3 {[%clk 0:02:44]} 20. Bd2 {[%clk 0:02:04]}  Ne5 {[%clk 0:02:27]} 21. Nxe5 {[%clk 0:01:49]}  Bxe5 {[%clk 0:02:28]} 22. Reb1 {[%clk 0:01:37]}  Ra6 {[%clk 0:02:23]} 23. Ra2 {[%clk 0:01:34]}  f5 {[%clk 0:02:10]} 24. exf5 {[%clk 0:01:25]}  gxf5 {[%clk 0:02:10]} 25. Re1 {[%clk 0:01:09]}  Kf7 {[%clk 0:02:07]} 26. Bc3 {[%clk 0:01:06]}  Bxc3 {[%clk 0:02:03]} 27. bxc3 {[%clk 0:01:07]}  Rxc3 {[%clk 0:02:04]} 28. Rd1 {[%clk 0:00:47]}  Ra5 {[%clk 0:02:00]} 29. f4 {[%clk 0:00:44]}  Rb3 {[%clk 0:02:00]} 30. Re1 {[%clk 0:00:41]}  Rd3 {[%clk 0:01:57]} 31. Rae2 {[%clk 0:00:40]}  Ra7 {[%clk 0:01:49]} 32. Re6 {[%clk 0:00:41]}  Rxd5 {[%clk 0:01:48]} 33. Rh6 {[%clk 0:00:41]}  Kg7 {[%clk 0:01:47]} 34. Rhe6 {[%clk 0:00:41]}  Rd2+ {[%clk 0:01:43]} 35. Kh3 {[%clk 0:00:37]}  Kf8 {[%clk 0:01:22]} 36. Rh6 {[%clk 0:00:33]}  Rxa4 {[%clk 0:01:12]} 37. Rxh7 {[%clk 0:00:21]}  Raa2 {[%clk 0:01:04]} 38. Rh1 {[%clk 0:00:21]}  c4 {[%clk 0:01:02]} 39. Rh8+ {[%clk 0:00:17]}  Kg7 {[%clk 0:01:00]} 40. Rc8 {[%clk 0:00:18]}  Rac2 {[%clk 0:00:59]} 41. Kh4 {[%clk 0:00:19]}  Rxh2+ {[%clk 0:00:44]} 42. Rxh2 {[%clk 0:00:20]}  Rxh2+ {[%clk 0:00:45]} 43. Kg5 {[%clk 0:00:21]}  d5 {[%clk 0:00:43]} 44. Kxf5 {[%clk 0:00:19]}  Kf7 {[%clk 0:00:43]} 45. g4 {[%clk 0:00:17]}  Re2 {[%clk 0:00:37]} 46. Rc7 {[%clk 0:00:14]}  Re3 {[%clk 0:00:33]} 47. Rc5 {[%clk 0:00:13]}  e6+ {[%clk 0:00:32]} 48. Kg5 {[%clk 0:00:14]}  c3 {[%clk 0:00:32]} 49. Rc7+ {[%clk 0:00:13]}  Ke8 {[%clk 0:00:32]} 50. Kf6 {[%clk 0:00:14]}  Kd8 {[%clk 0:00:28]} 51. Rc5 {[%clk 0:00:10]}  d4 {[%clk 0:00:26]} 52. g5 {[%clk 0:00:11]}  Kd7 {[%clk 0:00:26]} 53. g6 {[%clk 0:00:11]}  Rf3 {[%clk 0:00:19]} 54. g7 {[%clk 0:00:10]}  Rxf4+ {[%clk 0:00:19]} 55. Kg6 {[%clk 0:00:08]}  Rg4+ {[%clk 0:00:18]} 56. Kf7 {[%clk 0:00:07]}  Kd6 {[%clk 0:00:15]} 57. Rc8 {[%clk 0:00:07]}  e5 {[%clk 0:00:14]} 58. Kf6 {[%clk 0:00:03]}  Rxg7 {[%clk 0:00:12]} 59. Kxg7 {[%clk 0:00:03]}  Kd5 {[%clk 0:00:13]} 60. Kf6 {[%clk 0:00:03]}  Ke4 {[%clk 0:00:13]} 61. Re8 {[%clk 0:00:03]}  c2 {[%clk 0:00:12]} 62. Rxe5+ {[%clk 0:00:03]}  Kf3 {[%clk 0:00:12]} 63. Rc5 {[%clk 0:00:03]}  d3 {[%clk 0:00:12]} 64. Ke5 {[%clk 0:00:03]}  d2 {[%clk 0:00:09]} 65. Rxc2 {[%clk 0:00:04]}  d1=Q {[%clk 0:00:10]} 66. Rc5 {[%clk 0:00:04]}  Qa1+ {[%clk 0:00:09]} 67. Kd5 {[%clk 0:00:04]}  Ke3 {[%clk 0:00:10]} 68. Kd6 {[%clk 0:00:04]}  Qa3 {[%clk 0:00:09]} 69. Kd5 {[%clk 0:00:03]}  Kf4 {[%clk 0:00:08]} 70. Kc4 {[%clk 0:00:03]}  Ke4 {[%clk 0:00:07]} 71. Rc6 {[%clk 0:00:03]}  Qb2 {[%clk 0:00:06]} 72. Rc5 {[%clk 0:00:03]}  Qc2+ {[%clk 0:00:05]} 73. Kb5 {[%clk 0:00:03]}  Qb1+ {[%clk 0:00:06]} 74. Kc6 {[%clk 0:00:04]}  Kd4 {[%clk 0:00:06]} 75. Rd5+ {[%clk 0:00:04]}  Ke4 {[%clk 0:00:07]} 76. Rc5 {[%clk 0:00:05]}  Qb3 {[%clk 0:00:07]} 77. Rb5 {[%clk 0:00:04]}  Qa4 {[%clk 0:00:07]} 78. Kc5 {[%clk 0:00:04]}  Qd4+ {[%clk 0:00:06]} 79. Kc6 {[%clk 0:00:05]}  Qc4+ {[%clk 0:00:06]} 80. Rc5 {[%clk 0:00:05]}  Qa6+ {[%clk 0:00:06]} 81. Kc7 {[%clk 0:00:05]}  Kd4 {[%clk 0:00:05]} 82. Rc6 {[%clk 0:00:05]}  Qa7+ {[%clk 0:00:04]} 83. Kd6 {[%clk 0:00:05]}  Qf7 {[%clk 0:00:05]} 84. Rc7 {[%clk 0:00:05]}  Qf6+ {[%clk 0:00:05]} 85. Kd7 {[%clk 0:00:06]}  Kd5 {[%clk 0:00:06]} 86. Kc8 {[%clk 0:00:05]}  Kd6 {[%clk 0:00:05]} 87. Rd7+ {[%clk 0:00:04]}  Kc6 {[%clk 0:00:05]} 88. Rc7+ {[%clk 0:00:05]}  Kb6 {[%clk 0:00:05]} 89. Rb7+ {[%clk 0:00:05]}  Ka6 {[%clk 0:00:06]} 90. Rc7 {[%clk 0:00:05]}  Qe6+ {[%clk 0:00:05]} 91. Kd8 {[%clk 0:00:06]}  Kb6 {[%clk 0:00:06]} 92. Rb7+ {[%clk 0:00:03]}  Kc6 {[%clk 0:00:04]} 93. Rc7+ {[%clk 0:00:04]}  Kb6 {[%clk 0:00:04]} 94. Rb7+ {[%clk 0:00:04]}  Ka6 {[%clk 0:00:04]} 95. Re7 {[%clk 0:00:03]}  Qg8+ {[%clk 0:00:04]} 96. Kd7 {[%clk 0:00:04]}  Kb5 {[%clk 0:00:04]} 97. Re8 {[%clk 0:00:03]}  Qd5+ {[%clk 0:00:04]} 98. Ke7 {[%clk 0:00:03]}  Qg5+ {[%clk 0:00:04]} 99. Kf7 {[%clk 0:00:03]}  Kc5 {[%clk 0:00:04]} 100. Re6 {[%clk 0:00:04]}  Kd5 {[%clk 0:00:04]} 101. Rg6 {[%clk 0:00:04]}  Qh5 {[%clk 0:00:04]} 102. Kf6 {[%clk 0:00:04]}  Qf3+ {[%clk 0:00:04]} 103. Kg5 {[%clk 0:00:04]}  Ke5 {[%clk 0:00:05]} 104. Rg7 {[%clk 0:00:05]}  Qg3+ {[%clk 0:00:05]} 105. Kh6 {[%clk 0:00:05]}  Qh4+ {[%clk 0:00:05]} 106. Kg6 {[%clk 0:00:06]}  Ke6 {[%clk 0:00:05]} 107. Rg8 {[%clk 0:00:03]}  Qg4+ {[%clk 0:00:05]} 108. Kh7 {[%clk 0:00:03]}  Qh5+ {[%clk 0:00:05]} 109. Kg7 {[%clk 0:00:04]}  Ke7 {[%clk 0:00:06]} 110. Rh8 {[%clk 0:00:01]}  Qg5+ {[%clk 0:00:06]} 111. Kh7 {[%clk 0:00:02]}  Kf7 {[%clk 0:00:06]} 112. Rf8+ {[%clk 0:00:02]}  Ke7 {[%clk 0:00:06]} 113. Rh8 {[%clk 0:00:03]}  Qg4 {[%clk 0:00:06]} 114. Rg8 {[%clk 0:00:02]}  Qh5+ {[%clk 0:00:03]} 115. Kg7 {[%clk 0:00:02]}  Qg5+ {[%clk 0:00:02]} 1/2-1/2


[Site "https://www.chess.com"]

[Event "Titled Tuesday Blitz November 14 Late 2023"]
[White "Jamal-Jamal-Jamal"]
[Black "Luczak, Filip"]
[BlackFideId "1193686"]
[WhiteElo "2399"]
[BlackElo "2669"]
[Result "0-1"]
[Round "1"]
[TimeControl "180+1"]
[Date "2023.11.14"]
[WhiteClock "0:00:08"]
[BlackClock "0:00:13"]
[Board "83"]

1. e4 {[%clk 0:02:53]}  g6 {[%clk 0:02:59]} 2. d4 {[%clk 0:02:53]}  Bg7 {[%clk 0:02:59]} 3. Nc3 {[%clk 0:02:54]}  c5 {[%clk 0:03:00]} 4. dxc5 {[%clk 0:02:50]}  Bxc3+ {[%clk 0:02:59]} 5. bxc3 {[%clk 0:02:50]}  Nf6 {[%clk 0:02:59]} 6. f3 {[%clk 0:02:49]}  Qa5 {[%clk 0:02:58]} 7. Qd4 {[%clk 0:02:43]}  Nc6 {[%clk 0:02:58]} 8. Qe3 {[%clk 0:02:43]}  O-O {[%clk 0:02:52]} 9. Bd2 {[%clk 0:02:42]}  b6 {[%clk 0:02:49]} 10. cxb6 {[%clk 0:02:42]}  axb6 {[%clk 0:02:49]} 11. Bc4 {[%clk 0:02:40]}  Ne5 {[%clk 0:02:41]} 12. Bb3 {[%clk 0:02:36]}  Ba6 {[%clk 0:02:41]} 13. Ne2 {[%clk 0:02:32]}  Nc4 {[%clk 0:02:40]} 14. Bxc4 {[%clk 0:02:29]}  Bxc4 {[%clk 0:02:41]} 15. O-O {[%clk 0:02:29]}  Rfc8 {[%clk 0:02:39]} 16. Rfb1 {[%clk 0:02:22]}  Bxe2 {[%clk 0:02:23]} 17. Qxe2 {[%clk 0:02:19]}  Rc6 {[%clk 0:02:22]} 18. Qe3 {[%clk 0:02:13]}  d6 {[%clk 0:02:07]} 19. Rb2 {[%clk 0:02:09]}  Nd7 {[%clk 0:02:07]} 20. f4 {[%clk 0:01:59]}  Nc5 {[%clk 0:01:59]} 21. Rab1 {[%clk 0:01:50]}  Rac8 {[%clk 0:01:51]} 22. e5 {[%clk 0:01:44]}  dxe5 {[%clk 0:01:37]} 23. fxe5 {[%clk 0:01:44]}  Qa4 {[%clk 0:01:24]} 24. h3 {[%clk 0:01:32]}  Qc4 {[%clk 0:01:11]} 25. Rxb6 {[%clk 0:01:27]}  Qxa2 {[%clk 0:01:07]} 26. R6b2 {[%clk 0:01:15]}  Qd5 {[%clk 0:01:02]} 27. Rb5 {[%clk 0:01:12]}  Qa2 {[%clk 0:00:58]} 28. R5b2 {[%clk 0:01:11]}  Qa4 {[%clk 0:00:58]} 29. Kh2 {[%clk 0:01:05]}  Ne6 {[%clk 0:00:57]} 30. Rb3 {[%clk 0:00:56]}  Rc4 {[%clk 0:00:56]} 31. R1b2 {[%clk 0:00:48]}  Qc6 {[%clk 0:00:53]} 32. Rb4 {[%clk 0:00:47]}  Rc5 {[%clk 0:00:51]} 33. Rb6 {[%clk 0:00:44]}  Qd5 {[%clk 0:00:51]} 34. Rb8 {[%clk 0:00:39]}  Qd8 {[%clk 0:00:37]} 35. Rxc8 {[%clk 0:00:39]}  Rxc8 {[%clk 0:00:36]} 36. Rb1 {[%clk 0:00:36]}  Qd5 {[%clk 0:00:35]} 37. Rd1 {[%clk 0:00:35]}  Rd8 {[%clk 0:00:32]} 38. c4 {[%clk 0:00:28]}  Qxc4 {[%clk 0:00:31]} 39. Rc1 {[%clk 0:00:20]}  h5 {[%clk 0:00:22]} 40. Be1 {[%clk 0:00:20]}  Rc8 {[%clk 0:00:20]} 41. Bg3 {[%clk 0:00:20]}  Qd5 {[%clk 0:00:20]} 42. Qe2 {[%clk 0:00:17]}  Kg7 {[%clk 0:00:20]} 43. c4 {[%clk 0:00:18]}  Qd4 {[%clk 0:00:20]} 44. Bf2 {[%clk 0:00:16]}  Qf4+ {[%clk 0:00:20]} 45. Bg3 {[%clk 0:00:16]}  Qxc1 {[%clk 0:00:20]} 46. Qe4 {[%clk 0:00:14]}  Qxc4 {[%clk 0:00:20]} 47. Qe3 {[%clk 0:00:14]}  Qc3 {[%clk 0:00:19]} 48. Qe4 {[%clk 0:00:13]}  Qd4 {[%clk 0:00:19]} 49. Qb7 {[%clk 0:00:13]}  Rc7 {[%clk 0:00:16]} 50. Qb8 {[%clk 0:00:13]}  Rc3 {[%clk 0:00:16]} 51. Be1 {[%clk 0:00:11]}  Qf4+ {[%clk 0:00:15]} 52. Kg1 {[%clk 0:00:11]}  Qe3+ {[%clk 0:00:15]} 53. Kf1 {[%clk 0:00:11]}  Rc1 {[%clk 0:00:14]} 54. Qb4 {[%clk 0:00:11]}  Qxe5 {[%clk 0:00:11]} 55. Kf2 {[%clk 0:00:11]}  Rxe1 {[%clk 0:00:11]} 56. Qxe1 {[%clk 0:00:10]}  Qxe1+ {[%clk 0:00:12]} 57. Kxe1 {[%clk 0:00:10]}  Kf6 {[%clk 0:00:13]} 58. Ke2 {[%clk 0:00:08]}  h4 {[%clk 0:00:13]} 0-1


[Site "https://www.chess.com"]

[Event "Titled Tuesday Blitz November 14 Late 2023"]
[White "Maltsevskaya, Aleksandra"]
[Black "hristos03"]
[WhiteFideId "24174041"]
[WhiteElo "2666"]
[BlackElo "2392"]
[Result "1-0"]
[Round "1"]
[TimeControl "180+1"]
[Date "2023.11.14"]
[WhiteClock "0:00:08"]
[BlackClock "0:00:05"]
[Board "84"]

1. Nf3 {[%clk 0:02:51]}  Nf6 {[%clk 0:02:58]} 2. d3 {[%clk 0:02:52]}  e6 {[%clk 0:02:59]} 3. g3 {[%clk 0:02:53]}  d5 {[%clk 0:02:59]} 4. Bg2 {[%clk 0:02:54]}  Be7 {[%clk 0:02:56]} 5. O-O {[%clk 0:02:55]}  O-O {[%clk 0:02:52]} 6. Nbd2 {[%clk 0:02:55]}  c6 {[%clk 0:02:48]} 7. e4 {[%clk 0:02:56]}  dxe4 {[%clk 0:02:46]} 8. dxe4 {[%clk 0:02:56]}  b6 {[%clk 0:02:41]} 9. Re1 {[%clk 0:02:53]}  Bb7 {[%clk 0:02:37]} 10. e5 {[%clk 0:02:41]}  Nfd7 {[%clk 0:02:35]} 11. Nc4 {[%clk 0:02:29]}  c5 {[%clk 0:02:33]} 12. Nd6 {[%clk 0:02:27]}  Bc6 {[%clk 0:02:25]} 13. Bf4 {[%clk 0:02:25]}  Na6 {[%clk 0:02:23]} 14. c3 {[%clk 0:02:22]}  Nc7 {[%clk 0:02:21]} 15. c4 {[%clk 0:02:16]}  Ne8 {[%clk 0:02:09]} 16. Qd3 {[%clk 0:02:12]}  g6 {[%clk 0:02:01]} 17. Bh6 {[%clk 0:02:06]}  Ng7 {[%clk 0:01:33]} 18. Rad1 {[%clk 0:02:04]}  Qc7 {[%clk 0:01:27]} 19. Qe3 {[%clk 0:01:52]}  Rad8 {[%clk 0:01:21]} 20. Qf4 {[%clk 0:01:38]}  Nh5 {[%clk 0:00:40]} 21. Qe3 {[%clk 0:01:24]}  Ng7 {[%clk 0:00:40]} 22. Bf4 {[%clk 0:00:16]}  Bxd6 {[%clk 0:00:21]} 23. exd6 {[%clk 0:00:17]}  Qb7 {[%clk 0:00:21]} 24. g4 {[%clk 0:00:17]}  Nf6 {[%clk 0:00:15]} 25. h3 {[%clk 0:00:17]}  Rfe8 {[%clk 0:00:11]} 26. Bg5 {[%clk 0:00:17]}  Rd7 {[%clk 0:00:05]} 27. Bxf6 {[%clk 0:00:17]}  e5 {[%clk 0:00:05]} 28. Qh6 {[%clk 0:00:18]}  Ne6 {[%clk 0:00:05]} 29. Rxe5 {[%clk 0:00:18]}  Bxf3 {[%clk 0:00:05]} 30. Rh5 {[%clk 0:00:09]}  gxh5 {[%clk 0:00:04]} 31. Re1 {[%clk 0:00:08]}  Bxg2 {[%clk 0:00:04]} 32. Rxe6 {[%clk 0:00:07]}  fxe6 {[%clk 0:00:05]} 33. Qg5+ {[%clk 0:00:07]}  Kf7 {[%clk 0:00:05]} 34. Qg7# {[%clk 0:00:08]} 1-0


[Site "https://www.chess.com"]

[Event "Titled Tuesday Blitz November 14 Late 2023"]
[White "Mushini Ajay"]
[Black "Piesik, Piotr"]
[WhiteFideId "35066188"]
[BlackFideId "1136194"]
[WhiteElo "2389"]
[BlackElo "2663"]
[Result "1/2-1/2"]
[Round "1"]
[TimeControl "180+1"]
[Date "2023.11.14"]
[WhiteClock "0:00:13"]
[BlackClock "0:01:15"]
[Board "85"]

1. e4 {[%clk 0:03:00]}  g6 {[%clk 0:03:00]} 2. Nc3 {[%clk 0:02:59]}  Bg7 {[%clk 0:03:00]} 3. f4 {[%clk 0:02:59]}  c6 {[%clk 0:03:00]} 4. Nf3 {[%clk 0:02:59]}  d5 {[%clk 0:03:00]} 5. e5 {[%clk 0:02:59]}  Nh6 {[%clk 0:03:00]} 6. d4 {[%clk 0:02:59]}  Bg4 {[%clk 0:03:00]} 7. h3 {[%clk 0:02:59]}  Bxf3 {[%clk 0:03:00]} 8. Qxf3 {[%clk 0:03:00]}  Nf5 {[%clk 0:03:01]} 9. Be3 {[%clk 0:02:59]}  h5 {[%clk 0:02:59]} 10. Bd3 {[%clk 0:02:55]}  Nxe3 {[%clk 0:02:59]} 11. Qxe3 {[%clk 0:02:55]}  e6 {[%clk 0:02:59]} 12. O-O-O {[%clk 0:02:54]}  h4 {[%clk 0:02:59]} 13. Kb1 {[%clk 0:02:49]}  Nd7 {[%clk 0:02:58]} 14. g3 {[%clk 0:02:47]}  hxg3 {[%clk 0:02:58]} 15. Qxg3 {[%clk 0:02:47]}  Qh4 {[%clk 0:02:59]} 16. Qf3 {[%clk 0:02:45]}  O-O-O {[%clk 0:02:57]} 17. Ne2 {[%clk 0:02:44]}  Bf8 {[%clk 0:02:54]} 18. c4 {[%clk 0:02:42]}  dxc4 {[%clk 0:02:54]} 19. Bxc4 {[%clk 0:02:43]}  Nb6 {[%clk 0:02:54]} 20. Bb3 {[%clk 0:02:42]}  Be7 {[%clk 0:02:49]} 21. Nc3 {[%clk 0:02:40]}  Qh5 {[%clk 0:02:44]} 22. Qe3 {[%clk 0:02:38]}  Qh7 {[%clk 0:02:38]} 23. a3 {[%clk 0:02:19]}  Qg7 {[%clk 0:02:34]} 24. Ka2 {[%clk 0:02:17]}  Rh4 {[%clk 0:02:34]} 25. Rc1 {[%clk 0:02:15]}  Kb8 {[%clk 0:02:33]} 26. Ne4 {[%clk 0:02:13]}  Qh6 {[%clk 0:02:32]} 27. Ng5 {[%clk 0:02:01]}  Bxg5 {[%clk 0:02:29]} 28. fxg5 {[%clk 0:02:02]}  Qf8 {[%clk 0:02:26]} 29. Rhf1 {[%clk 0:01:58]}  Nd5 {[%clk 0:01:56]} 30. Bxd5 {[%clk 0:01:48]}  Rxd5 {[%clk 0:01:56]} 31. Rf4 {[%clk 0:01:41]}  Rxf4 {[%clk 0:01:52]} 32. Qxf4 {[%clk 0:01:42]}  Rd7 {[%clk 0:01:48]} 33. h4 {[%clk 0:01:38]}  Qd8 {[%clk 0:01:46]} 34. Rc4 {[%clk 0:01:33]}  a6 {[%clk 0:01:41]} 35. Qe4 {[%clk 0:01:15]}  Qa5 {[%clk 0:01:38]} 36. Rc5 {[%clk 0:01:11]}  Qd2 {[%clk 0:01:37]} 37. Rc4 {[%clk 0:01:07]}  Ka8 {[%clk 0:01:36]} 38. Rxc6 {[%clk 0:00:22]}  bxc6 {[%clk 0:01:31]} 39. Qxc6+ {[%clk 0:00:23]}  Rb7 {[%clk 0:01:31]} 40. Qc8+ {[%clk 0:00:21]}  Ka7 {[%clk 0:01:31]} 41. Qc5+ {[%clk 0:00:21]}  Kb8 {[%clk 0:01:31]} 42. Qf8+ {[%clk 0:00:20]}  Kc7 {[%clk 0:01:23]} 43. Qd6+ {[%clk 0:00:19]}  Kc8 {[%clk 0:01:21]} 44. Qf8+ {[%clk 0:00:19]}  Kd7 {[%clk 0:01:21]} 45. Qxf7+ {[%clk 0:00:13]}  Kc6 {[%clk 0:01:21]} 46. Qxe6+ {[%clk 0:00:13]}  Kc7 {[%clk 0:01:14]} 47. Qd6+ {[%clk 0:00:13]}  Kc8 {[%clk 0:01:15]} 48. Qf8+ {[%clk 0:00:12]}  Kc7 {[%clk 0:01:14]} 49. Qd6+ {[%clk 0:00:13]}  Kc8 {[%clk 0:01:14]} 50. Qf8+ {[%clk 0:00:13]}  Kc7 {[%clk 0:01:15]} 51. Qd6+ {[%clk 0:00:13]} 1/2-1/2


[Site "https://www.chess.com"]

[Event "Titled Tuesday Blitz November 14 Late 2023"]
[White "Kushko, Dmitriy"]
[Black "Real_taiatai"]
[WhiteFideId "14162261"]
[WhiteElo "2663"]
[BlackElo "2386"]
[Result "1-0"]
[Round "1"]
[TimeControl "180+1"]
[Date "2023.11.14"]
[WhiteClock "0:00:42"]
[BlackClock "0:00:05"]
[Board "86"]

1. Nf3 {[%clk 0:02:59]}  Nf6 {[%clk 0:02:59]} 2. g3 {[%clk 0:02:54]}  g6 {[%clk 0:03:00]} 3. c4 {[%clk 0:02:46]}  Bg7 {[%clk 0:03:01]} 4. Bg2 {[%clk 0:02:46]}  O-O {[%clk 0:03:02]} 5. O-O {[%clk 0:02:46]}  d6 {[%clk 0:03:03]} 6. Nc3 {[%clk 0:02:46]}  Nc6 {[%clk 0:03:03]} 7. d3 {[%clk 0:02:46]}  e5 {[%clk 0:03:02]} 8. Rb1 {[%clk 0:02:46]}  a5 {[%clk 0:03:02]} 9. b3 {[%clk 0:02:46]}  Nh5 {[%clk 0:03:00]} 10. e4 {[%clk 0:02:40]}  f5 {[%clk 0:02:49]} 11. Bg5 {[%clk 0:02:40]}  Qe8 {[%clk 0:02:48]} 12. exf5 {[%clk 0:02:36]}  gxf5 {[%clk 0:02:47]} 13. Nh4 {[%clk 0:02:32]}  Nf6 {[%clk 0:02:43]} 14. f4 {[%clk 0:02:16]}  Ng4 {[%clk 0:02:41]} 15. fxe5 {[%clk 0:02:14]}  Qxe5 {[%clk 0:02:22]} 16. Nd5 {[%clk 0:02:06]}  Qd4+ {[%clk 0:02:05]} 17. Kh1 {[%clk 0:02:06]}  Nf2+ {[%clk 0:01:59]} 18. Rxf2 {[%clk 0:02:05]}  Qxf2 {[%clk 0:02:00]} 19. Nxc7 {[%clk 0:02:03]}  Rb8 {[%clk 0:01:57]} 20. Bd5+ {[%clk 0:02:03]}  Kh8 {[%clk 0:01:55]} 21. Qh5 {[%clk 0:02:03]}  Ne5 {[%clk 0:01:21]} 22. Bf4 {[%clk 0:02:03]}  Rf6 {[%clk 0:00:34]} 23. Bxe5 {[%clk 0:01:28]}  dxe5 {[%clk 0:00:33]} 24. Ne8 {[%clk 0:01:20]}  Bd7 {[%clk 0:00:07]} 25. Nxg7 {[%clk 0:00:57]}  Kxg7 {[%clk 0:00:07]} 26. Qg5+ {[%clk 0:00:57]}  Rg6 {[%clk 0:00:07]} 27. Qe7+ {[%clk 0:00:56]}  Kh6 {[%clk 0:00:07]} 28. Qxd7 {[%clk 0:00:50]}  Rf6 {[%clk 0:00:05]} 29. Qe7 {[%clk 0:00:46]}  Rbf8 {[%clk 0:00:05]} 30. Qxe5 {[%clk 0:00:46]}  f4 {[%clk 0:00:05]} 31. Nf3 {[%clk 0:00:42]}  fxg3 {[%clk 0:00:05]} 32. Qg5# {[%clk 0:00:42]} 1-0


[Site "https://www.chess.com"]

[Event "Titled Tuesday Blitz November 14 Late 2023"]
[White "Dobrikov, Marco"]
[Black "Bogaudinov, Rushan"]
[WhiteFideId "12950378"]
[BlackFideId "4129288"]
[WhiteElo "2656"]
[BlackElo "2382"]
[Result "0-1"]
[Round "1"]
[TimeControl "180+1"]
[Date "2023.11.14"]
[WhiteClock "0:02:08"]
[BlackClock "0:00:21"]
[Board "88"]

1. c4 {[%clk 0:02:58]}  e5 {[%clk 0:02:59]} 2. Nc3 {[%clk 0:02:59]}  Nf6 {[%clk 0:02:59]} 3. Nf3 {[%clk 0:02:59]}  Nc6 {[%clk 0:02:58]} 4. g3 {[%clk 0:02:59]}  Bb4 {[%clk 0:02:57]} 5. Bg2 {[%clk 0:02:59]}  O-O {[%clk 0:02:54]} 6. O-O {[%clk 0:02:59]}  Bxc3 {[%clk 0:02:40]} 7. dxc3 {[%clk 0:02:58]}  d6 {[%clk 0:02:40]} 8. Bg5 {[%clk 0:02:58]}  h6 {[%clk 0:02:37]} 9. Bxf6 {[%clk 0:02:58]}  Qxf6 {[%clk 0:02:37]} 10. Nd2 {[%clk 0:02:58]}  Qe7 {[%clk 0:02:29]} 11. e4 {[%clk 0:02:58]}  a5 {[%clk 0:02:21]} 12. Re1 {[%clk 0:02:58]}  a4 {[%clk 0:02:19]} 13. Nf1 {[%clk 0:02:58]}  f5 {[%clk 0:02:15]} 14. exf5 {[%clk 0:02:57]}  Bxf5 {[%clk 0:02:14]} 15. Ne3 {[%clk 0:02:57]}  Be6 {[%clk 0:02:09]} 16. c5 {[%clk 0:02:45]}  dxc5 {[%clk 0:01:58]} 17. Bxc6 {[%clk 0:02:45]}  bxc6 {[%clk 0:01:57]} 18. Qc2 {[%clk 0:02:45]}  Qf6 {[%clk 0:01:50]} 19. Re2 {[%clk 0:02:39]}  Qf3 {[%clk 0:01:40]} 20. Rd2 {[%clk 0:02:36]}  Rad8 {[%clk 0:01:26]} 21. Rad1 {[%clk 0:02:28]}  Rxd2 {[%clk 0:01:19]} 22. Rxd2 {[%clk 0:02:29]}  Bxa2 {[%clk 0:01:13]} 23. Qxa4 {[%clk 0:02:28]}  Bd5 {[%clk 0:01:12]} 24. Nxd5 {[%clk 0:02:28]}  cxd5 {[%clk 0:01:12]} 25. Qc6 {[%clk 0:02:27]}  d4 {[%clk 0:00:46]} 26. Qxc5 {[%clk 0:02:18]}  dxc3 {[%clk 0:00:35]} 27. bxc3 {[%clk 0:02:19]}  e4 {[%clk 0:00:26]} 28. Qxc7 {[%clk 0:02:09]}  e3 {[%clk 0:00:26]} 29. Qc4+ {[%clk 0:02:09]}  Kh8 {[%clk 0:00:23]} 30. fxe3 {[%clk 0:02:10]}  Qxe3+ {[%clk 0:00:21]} 31. Rf2 {[%clk 0:02:08]} 0-1


[Site "https://www.chess.com"]